[Event "Live Chess"]
[Site "Chess.com"]
[Date "2024.06.02"]
[Round "-"]
[White "Ginger_GM"]
[Black "viktor_forever1994"]
[Result "1-0"]
[WhiteElo "2665"]
[BlackElo "1376"]
[TimeControl "300"]
[EndTime "8:38:49 PDT"]
[Termination "Ginger_GM won on time"]

1. e4 {[%clk 0:04:58.6]} 1... e5 {[%clk 0:04:58.9]} 2. f4 {[%clk 0:04:57.7]}
2... Nc6 {[%clk 0:04:58.8]} 3. Nf3 {[%clk 0:04:55.1]} 3... exf4 {[%clk
0:04:57.7]} 4. Bc4 {[%clk 0:04:51.8]} 4... h6 {[%clk 0:04:57.6]} 5. d4 {[%clk
0:04:49.1]} 5... d6 {[%clk 0:04:56.8]} 6. Bxf4 {[%clk 0:04:47.2]} 6... g5 {[%clk
0:04:55.6]} 7. Be3 {[%clk 0:04:43.1]} 7... Bg7 {[%clk 0:04:54.9]} 8. Nc3 {[%clk
0:04:40.5]} 8... Bg4 {[%clk 0:04:53.5]} 9. O-O {[%clk 0:04:38.2]} 9... Nf6
{[%clk 0:04:43]} 10. Qd3 {[%clk 0:04:32.2]} 10... O-O {[%clk 0:04:31.5]} 11. a3
{[%clk 0:04:29]} 11... Re8 {[%clk 0:04:10.7]} 12. Ba2 {[%clk 0:04:24.7]} 12...
Qe7 {[%clk 0:03:48.9]} 13. Nd2 {[%clk 0:04:23.3]} 13... a6 {[%clk 0:03:23.3]}
14. Nd5 {[%clk 0:04:18.6]} 14... Nxd5 {[%clk 0:03:17.3]} 15. Bxd5 {[%clk
0:04:18.5]} 15... Be6 {[%clk 0:03:05.7]} 16. Bxe6 {[%clk 0:04:16.7]} 16... fxe6
{[%clk 0:02:53.1]} 17. h4 {[%clk 0:04:07.3]} 17... Rf8 {[%clk 0:02:45.7]} 18.
hxg5 {[%clk 0:04:05.4]} 18... hxg5 {[%clk 0:02:43]} 19. c3 {[%clk 0:04:02]}
19... Rxf1+ {[%clk 0:02:31.9]} 20. Rxf1 {[%clk 0:04:01.9]} 20... Rf8 {[%clk
0:02:31.4]} 21. Rxf8+ {[%clk 0:04:00.5]} 21... Qxf8 {[%clk 0:02:31.2]} 22. Bxg5
{[%clk 0:03:59.4]} 22... Qf7 {[%clk 0:02:17.3]} 23. Qf3 {[%clk 0:03:49.2]} 23...
Qg6 {[%clk 0:02:14]} 24. Be3 {[%clk 0:03:45.7]} 24... Bh6 {[%clk 0:01:50.3]} 25.
Nf1 {[%clk 0:03:43.4]} 25... Kg7 {[%clk 0:01:42.8]} 26. Bxh6+ {[%clk 0:03:39.5]}
26... Qxh6 {[%clk 0:01:42.7]} 27. Ne3 {[%clk 0:03:38.7]} 27... Ne7 {[%clk
0:01:10.7]} 28. Kf2 {[%clk 0:03:36.6]} 28... Qh4+ {[%clk 0:01:06.4]} 29. Qg3+
{[%clk 0:03:34.9]} 29... Qxg3+ {[%clk 0:01:03.9]} 30. Kxg3 {[%clk 0:03:34.8]}
30... Kg6 {[%clk 0:01:03.2]} 31. Kf3 {[%clk 0:03:30.4]} 31... Kg5 {[%clk
0:00:59.2]} 32. g3 {[%clk 0:03:27.8]} 32... Nc6 {[%clk 0:00:56.9]} 33. Ng2
{[%clk 0:03:25.3]} 33... Na5 {[%clk 0:00:50.8]} 34. Nf4 {[%clk 0:03:22.6]} 34...
e5 {[%clk 0:00:46.4]} 35. Ne6+ {[%clk 0:03:20]} 35... Kf6 {[%clk 0:00:44.3]} 36.
Nxc7 {[%clk 0:03:19.1]} 36... Nc4 {[%clk 0:00:35.8]} 37. Nd5+ {[%clk 0:03:16.5]}
37... Kg5 {[%clk 0:00:30.8]} 38. b3 {[%clk 0:03:07.3]} 38... Nxa3 {[%clk
0:00:29.6]} 39. dxe5 {[%clk 0:02:55.9]} 39... dxe5 {[%clk 0:00:29.5]} 40. Ke3
{[%clk 0:02:55]} 40... Kg4 {[%clk 0:00:22.9]} 41. Nf6+ {[%clk 0:02:51.5]} 41...
Kxg3 {[%clk 0:00:20.5]} 42. Nd7 {[%clk 0:02:50.4]} 42... Nb5 {[%clk 0:00:12]}
43. c4 {[%clk 0:02:49.6]} 43... Nd4 {[%clk 0:00:06.1]} 44. Nxe5 {[%clk
0:02:48.7]} 44... Nc2+ {[%clk 0:00:05.2]} 45. Kd3 {[%clk 0:02:46]} 45... Nb4+
{[%clk 0:00:04.4]} 46. Kc3 {[%clk 0:02:45.4]} 46... Nc6 {[%clk 0:00:00.1]} 47.
Nxc6 {[%clk 0:02:44.1]} 1-0

[Event "Live Chess"]
[Site "Chess.com"]
[Date "2024.06.02"]
[Round "-"]
[White "lyricalschemes"]
[Black "Dhaydon19"]
[Result "1/2-1/2"]
[WhiteElo "2210"]
[BlackElo "2658"]
[TimeControl "300"]
[EndTime "8:39:17 PDT"]
[Termination "Game drawn by repetition"]

1. e4 {[%clk 0:04:58.1]} 1... c6 {[%clk 0:04:59.5]} 2. d4 {[%clk 0:04:57]} 2...
d5 {[%clk 0:04:55.6]} 3. Nc3 {[%clk 0:04:56.4]} 3... dxe4 {[%clk 0:04:54.6]} 4.
Nxe4 {[%clk 0:04:56.3]} 4... Nf6 {[%clk 0:04:51.8]} 5. Nxf6+ {[%clk 0:04:55.8]}
5... exf6 {[%clk 0:04:51.3]} 6. Nf3 {[%clk 0:04:55.5]} 6... Bd6 {[%clk
0:04:50.8]} 7. Be2 {[%clk 0:04:54.1]} 7... O-O {[%clk 0:04:50.3]} 8. O-O {[%clk
0:04:53.7]} 8... Nd7 {[%clk 0:04:49.5]} 9. c3 {[%clk 0:04:50]} 9... g6 {[%clk
0:04:49]} 10. Bh6 {[%clk 0:04:47.2]} 10... Re8 {[%clk 0:04:47.6]} 11. Qd2 {[%clk
0:04:46.9]} 11... f5 {[%clk 0:04:46.4]} 12. Bc4 {[%clk 0:04:40.2]} 12... Nb6
{[%clk 0:04:43]} 13. Bb3 {[%clk 0:04:37]} 13... Be6 {[%clk 0:04:42]} 14. Rfe1
{[%clk 0:04:33.9]} 14... Bd5 {[%clk 0:04:37]} 15. Bg5 {[%clk 0:04:28.3]} 15...
Rxe1+ {[%clk 0:04:33.4]} 16. Rxe1 {[%clk 0:04:26]} 16... f6 {[%clk 0:04:32.9]}
17. Bf4 {[%clk 0:04:22.5]} 17... Qd7 {[%clk 0:04:28.2]} 18. Bxd6 {[%clk
0:04:15.3]} 18... Qxd6 {[%clk 0:04:27.1]} 19. Qe3 {[%clk 0:04:02.1]} 19... Bxb3
{[%clk 0:04:17.9]} 20. axb3 {[%clk 0:03:59.6]} 20... Nd5 {[%clk 0:04:17.5]} 21.
Qe2 {[%clk 0:03:51.6]} 21... Kf7 {[%clk 0:04:12.8]} 22. Qd2 {[%clk 0:03:41.8]}
22... Kg7 {[%clk 0:04:06.6]} 23. g3 {[%clk 0:03:38.7]} 23... Rd8 {[%clk
0:04:04.1]} 24. Qe2 {[%clk 0:03:31.6]} 24... Rd7 {[%clk 0:03:59.8]} 25. Qe8
{[%clk 0:03:28.1]} 25... Re7 {[%clk 0:03:57.8]} 26. Rxe7+ {[%clk 0:03:17.2]}
26... Qxe7 {[%clk 0:03:56.9]} 27. Qxe7+ {[%clk 0:03:15.8]} 27... Nxe7 {[%clk
0:03:56]} 28. Kf1 {[%clk 0:03:15]} 28... Kf7 {[%clk 0:03:54.4]} 29. Ke2 {[%clk
0:03:14.5]} 29... Ke6 {[%clk 0:03:54]} 30. Kd3 {[%clk 0:03:14]} 30... Nd5 {[%clk
0:03:51.1]} 31. Nd2 {[%clk 0:03:07.5]} 31... a5 {[%clk 0:03:48.4]} 32. Nc4
{[%clk 0:03:04.8]} 32... b6 {[%clk 0:03:46.9]} 33. Nd2 {[%clk 0:02:55.1]} 33...
g5 {[%clk 0:03:44.6]} 34. Nf3 {[%clk 0:02:51.5]} 34... f4 {[%clk 0:03:40]} 35.
g4 {[%clk 0:02:37.2]} 35... h6 {[%clk 0:03:37.1]} 36. h3 {[%clk 0:02:32.9]}
36... f5 {[%clk 0:03:33]} 37. Ne5 {[%clk 0:02:21.6]} 37... Ne7 {[%clk
0:03:15.6]} 38. c4 {[%clk 0:02:06.4]} 38... c5 {[%clk 0:03:11.3]} 39. f3 {[%clk
0:01:47.9]} 39... Nc8 {[%clk 0:02:58.5]} 40. Nc6 {[%clk 0:01:31.3]} 40... fxg4
{[%clk 0:02:54.1]} 41. hxg4 {[%clk 0:01:30]} 41... Kd6 {[%clk 0:02:38.8]} 42.
Ne5 {[%clk 0:01:25.6]} 42... Ke6 {[%clk 0:02:37.8]} 43. Nc6 {[%clk 0:01:24.5]}
43... Nd6 {[%clk 0:02:31.1]} 44. dxc5 {[%clk 0:01:15.4]} 44... bxc5 {[%clk
0:02:30.2]} 45. Nxa5 {[%clk 0:01:14.5]} 45... Nf7 {[%clk 0:02:25.5]} 46. Ke4
{[%clk 0:01:08.9]} 46... Nd6+ {[%clk 0:02:20.2]} 47. Kd3 {[%clk 0:01:07.6]}
47... Nf7 {[%clk 0:02:19.5]} 48. Ke4 {[%clk 0:01:06.3]} 48... Nd6+ {[%clk
0:02:10.1]} 49. Kd3 {[%clk 0:01:05.4]} 1/2-1/2

[Event "Live Chess"]
[Site "Chess.com"]
[Date "2024.06.02"]
[Round "-"]
[White "ivan_1968"]
[Black "bobby_jamesFischer86"]
[Result "1-0"]
[WhiteElo "1815"]
[BlackElo "1630"]
[TimeControl "300"]
[EndTime "8:39:22 PDT"]
[Termination "ivan_1968 won by resignation"]

1. d4 {[%clk 0:04:57.3]} 1... d5 {[%clk 0:04:58.6]} 2. c4 {[%clk 0:04:56.1]}
2... c6 {[%clk 0:04:57.5]} 3. Nf3 {[%clk 0:04:54]} 3... Nf6 {[%clk 0:04:56.2]}
4. Qc2 {[%clk 0:04:53.2]} 4... e6 {[%clk 0:04:46.5]} 5. g3 {[%clk 0:04:51.6]}
5... Bb4+ {[%clk 0:04:44]} 6. Bd2 {[%clk 0:04:50]} 6... Bxd2+ {[%clk 0:04:40.6]}
7. Nbxd2 {[%clk 0:04:49.9]} 7... Nbd7 {[%clk 0:04:37.9]} 8. Bg2 {[%clk 0:04:49]}
8... O-O {[%clk 0:04:36.6]} 9. O-O {[%clk 0:04:48]} 9... b6 {[%clk 0:04:35.8]}
10. e4 {[%clk 0:04:46.4]} 10... dxe4 {[%clk 0:04:32.1]} 11. Nxe4 {[%clk
0:04:45.1]} 11... Nxe4 {[%clk 0:04:31.2]} 12. Qxe4 {[%clk 0:04:44.8]} 12... Bb7
{[%clk 0:04:29.5]} 13. Ne5 {[%clk 0:04:36.8]} 13... Nxe5 {[%clk 0:04:17.3]} 14.
dxe5 {[%clk 0:04:34.8]} 14... Rb8 {[%clk 0:04:03]} 15. Rfd1 {[%clk 0:04:31]}
15... Qe7 {[%clk 0:03:50.9]} 16. Rd6 {[%clk 0:04:24.4]} 16... c5 {[%clk
0:03:46.6]} 17. Qd3 {[%clk 0:04:22.3]} 17... Bxg2 {[%clk 0:03:44.9]} 18. Kxg2
{[%clk 0:04:22.2]} 18... Qb7+ {[%clk 0:03:38.9]} 19. f3 {[%clk 0:04:17]} 19...
h6 {[%clk 0:03:28.4]} 20. Rd1 {[%clk 0:04:15.5]} 20... Qa6 {[%clk 0:03:25.3]}
21. a3 {[%clk 0:04:11.4]} 21... b5 {[%clk 0:03:21.3]} 22. Rxa6 {[%clk
0:04:08.1]} 1-0

[Event "Live Chess"]
[Site "Chess.com"]
[Date "2024.06.02"]
[Round "-"]
[White "TC2304"]
[Black "Frankie_Badacsonyi"]
[Result "1-0"]
[WhiteElo "2331"]
[BlackElo "2350"]
[TimeControl "300"]
[EndTime "8:39:26 PDT"]
[Termination "TC2304 won by resignation"]

1. d4 {[%clk 0:04:57.8]} 1... Nf6 {[%clk 0:04:57.9]} 2. Nf3 {[%clk 0:04:57.3]}
2... g6 {[%clk 0:04:56.9]} 3. Bg5 {[%clk 0:04:56.3]} 3... Bg7 {[%clk 0:04:56.1]}
4. c3 {[%clk 0:04:54.9]} 4... O-O {[%clk 0:04:55.4]} 5. Nbd2 {[%clk 0:04:54.6]}
5... d6 {[%clk 0:04:54.4]} 6. e4 {[%clk 0:04:54.1]} 6... Nbd7 {[%clk 0:04:53.8]}
7. Bc4 {[%clk 0:04:53.1]} 7... e5 {[%clk 0:04:52.1]} 8. O-O {[%clk 0:04:48.1]}
8... c6 {[%clk 0:04:48.5]} 9. a4 {[%clk 0:04:43]} 9... Qe7 {[%clk 0:04:45.7]}
10. dxe5 {[%clk 0:04:38.8]} 10... dxe5 {[%clk 0:04:42.8]} 11. a5 {[%clk
0:04:35.5]} 11... h6 {[%clk 0:04:36.9]} 12. Bh4 {[%clk 0:04:21.7]} 12... Kh7
{[%clk 0:04:31.3]} 13. Qb3 {[%clk 0:04:18]} 13... Nc5 {[%clk 0:04:19.6]} 14. Qc2
{[%clk 0:04:15.8]} 14... g5 {[%clk 0:04:09.2]} 15. Bg3 {[%clk 0:04:06.4]} 15...
Nh5 {[%clk 0:04:07.1]} 16. b4 {[%clk 0:04:03.2]} 16... Nxg3 {[%clk 0:04:03.3]}
17. hxg3 {[%clk 0:04:03.1]} 17... Ne6 {[%clk 0:04:00.2]} 18. Rfd1 {[%clk
0:04:01.7]} 18... a6 {[%clk 0:03:55.6]} 19. Nf1 {[%clk 0:04:00.6]} 19... Nc7
{[%clk 0:03:46.3]} 20. Ne3 {[%clk 0:03:58]} 20... Nb5 {[%clk 0:03:40.5]} 21. g4
{[%clk 0:03:53.1]} 21... Nd6 {[%clk 0:03:34.2]} 22. Bd3 {[%clk 0:03:46.2]} 22...
Be6 {[%clk 0:03:24.8]} 23. Nh2 {[%clk 0:03:44.8]} 23... f6 {[%clk 0:02:59.4]}
24. Nhf1 {[%clk 0:03:44.2]} 24... Rfd8 {[%clk 0:02:58.1]} 25. Ng3 {[%clk
0:03:43.2]} 25... Qc7 {[%clk 0:02:52.4]} 26. Rac1 {[%clk 0:03:37.2]} 26... c5
{[%clk 0:02:47.5]} 27. Qe2 {[%clk 0:03:30.4]} 27... Rac8 {[%clk 0:02:37.8]} 28.
Nd5 {[%clk 0:03:21.2]} 28... Bxd5 {[%clk 0:02:33.6]} 29. exd5+ {[%clk
0:03:19.2]} 29... Kg8 {[%clk 0:02:31.7]} 30. Qd2 {[%clk 0:02:54.6]} 30... Re8
{[%clk 0:02:10.6]} 31. Bf5 {[%clk 0:02:49]} 31... Rcd8 {[%clk 0:02:03.2]} 32.
Qe3 {[%clk 0:02:42.8]} 32... Nc4 {[%clk 0:01:48.7]} 33. Qe2 {[%clk 0:02:38.4]}
33... Nd6 {[%clk 0:01:46.5]} 34. Rc2 {[%clk 0:02:27.6]} 34... Bf8 {[%clk
0:01:41]} 35. Be6+ {[%clk 0:02:22.6]} 35... Kh8 {[%clk 0:01:37.4]} 36. Qf3
{[%clk 0:02:17.9]} 36... Bg7 {[%clk 0:01:34.7]} 37. Rcc1 {[%clk 0:02:01.4]}
37... c4 {[%clk 0:01:28]} 38. Nh5 {[%clk 0:01:52.2]} 38... Rf8 {[%clk
0:01:25.5]} 39. g3 {[%clk 0:01:50.1]} 39... b6 {[%clk 0:01:13.4]} 40. axb6
{[%clk 0:01:45.4]} 40... Qxb6 {[%clk 0:01:13.3]} 41. Kg2 {[%clk 0:01:45.1]}
41... e4 {[%clk 0:01:10.9]} 42. Qe2 {[%clk 0:01:38.5]} 42... e3 {[%clk
0:01:08.7]} 43. fxe3 {[%clk 0:01:32.3]} 43... Ne4 {[%clk 0:00:59.5]} 44. Rd4
{[%clk 0:01:30.1]} 44... f5 {[%clk 0:00:57.4]} 45. Nxg7 {[%clk 0:01:29.6]} 45...
Kxg7 {[%clk 0:00:55.2]} 46. gxf5 {[%clk 0:01:28.7]} 46... Nf6 {[%clk 0:00:53.5]}
47. e4 {[%clk 0:01:26]} 47... Nd7 {[%clk 0:00:48.9]} 48. e5 {[%clk 0:01:23.2]}
1-0

[Event "Live Chess"]
[Site "Chess.com"]
[Date "2024.06.02"]
[Round "-"]
[White "Dashman93"]
[Black "LL220284LL"]
[Result "1-0"]
[WhiteElo "2157"]
[BlackElo "2471"]
[TimeControl "300"]
[EndTime "8:39:28 PDT"]
[Termination "Dashman93 won by resignation"]

1. d4 {[%clk 0:04:58.6]} 1... e6 {[%clk 0:04:58.6]} 2. e4 {[%clk 0:04:57.5]}
2... d5 {[%clk 0:04:49.9]} 3. e5 {[%clk 0:04:56.8]} 3... Nh6 {[%clk 0:04:47.1]}
4. Nf3 {[%clk 0:04:54.9]} 4... b6 {[%clk 0:04:44.7]} 5. c3 {[%clk 0:04:54.3]}
5... Bb7 {[%clk 0:04:43.7]} 6. Be3 {[%clk 0:04:53.5]} 6... c5 {[%clk 0:04:42.4]}
7. Bd3 {[%clk 0:04:52.6]} 7... Nc6 {[%clk 0:04:40.9]} 8. Na3 {[%clk 0:04:51]}
8... cxd4 {[%clk 0:04:39.5]} 9. cxd4 {[%clk 0:04:50.9]} 9... Bxa3 {[%clk
0:04:33.3]} 10. bxa3 {[%clk 0:04:50.8]} 10... g6 {[%clk 0:04:32.6]} 11. Bxh6
{[%clk 0:04:49.6]} 11... Rc8 {[%clk 0:04:28.4]} 12. Bg5 {[%clk 0:04:48.2]} 12...
Qd7 {[%clk 0:04:25.7]} 13. Bf6 {[%clk 0:04:46.8]} 13... Rg8 {[%clk 0:04:24.4]}
14. O-O {[%clk 0:04:44.6]} 14... h6 {[%clk 0:04:21.8]} 15. Qd2 {[%clk
0:04:43.3]} 15... Na5 {[%clk 0:04:20]} 16. Qxh6 {[%clk 0:04:41.2]} 16... Qa4
{[%clk 0:04:13.5]} 17. Qh7 {[%clk 0:04:36.4]} 17... Rf8 {[%clk 0:04:11.4]} 18.
Ng5 {[%clk 0:04:35.8]} 18... Qxd4 {[%clk 0:04:08.2]} 19. Bxg6 {[%clk 0:04:34.2]}
19... Rc7 {[%clk 0:04:03.2]} 20. Nxe6 {[%clk 0:04:29.6]} 1-0

[Event "Live Chess"]
[Site "Chess.com"]
[Date "2024.06.02"]
[Round "-"]
[White "matt1979"]
[Black "upoe610"]
[Result "0-1"]
[WhiteElo "1404"]
[BlackElo "2147"]
[TimeControl "300"]
[EndTime "8:39:29 PDT"]
[Termination "upoe610 won by resignation"]

1. f4 {[%clk 0:04:56.4]} 1... e5 {[%clk 0:04:58.9]} 2. fxe5 {[%clk 0:04:54.8]}
2... d6 {[%clk 0:04:58.1]} 3. Nf3 {[%clk 0:04:52.1]} 3... dxe5 {[%clk
0:04:56.8]} 4. e4 {[%clk 0:04:51.3]} 4... Nc6 {[%clk 0:04:55.7]} 5. Bb5 {[%clk
0:04:49.6]} 5... Bd6 {[%clk 0:04:54.2]} 6. O-O {[%clk 0:04:47]} 6... Nf6 {[%clk
0:04:53.1]} 7. d3 {[%clk 0:04:43.3]} 7... O-O {[%clk 0:04:51.5]} 8. Bg5 {[%clk
0:04:41.5]} 8... h6 {[%clk 0:04:50.3]} 9. Bh4 {[%clk 0:04:39.6]} 9... Nd4 {[%clk
0:04:48.5]} 10. Nxd4 {[%clk 0:04:35.5]} 10... exd4 {[%clk 0:04:48.2]} 11. Bc4
{[%clk 0:04:32.1]} 11... g5 {[%clk 0:04:34.4]} 12. Bf2 {[%clk 0:04:28.5]} 12...
c5 {[%clk 0:04:33.3]} 13. Be1 {[%clk 0:04:19.5]} 13... Bg4 {[%clk 0:04:17.8]}
14. Qd2 {[%clk 0:04:14.3]} 14... Bf4 {[%clk 0:04:15.9]} 15. Rxf4 {[%clk
0:03:57.6]} 15... gxf4 {[%clk 0:04:14.6]} 16. Qxf4 {[%clk 0:03:54.2]} 16... Be6
{[%clk 0:04:09.4]} 17. Qxh6 {[%clk 0:03:42.3]} 17... Bxc4 {[%clk 0:04:08.4]} 18.
dxc4 {[%clk 0:03:40.5]} 18... Ng4 {[%clk 0:04:07.5]} 19. Qh5 {[%clk 0:03:35.1]}
19... Ne3 {[%clk 0:04:05.6]} 20. Bh4 {[%clk 0:03:19.9]} 20... Qd6 {[%clk
0:04:03.7]} 21. Nd2 {[%clk 0:03:13]} 21... Qg6 {[%clk 0:04:01.1]} 22. Qf3 {[%clk
0:03:03.4]} 22... Kg7 {[%clk 0:03:56.9]} 23. Nb3 {[%clk 0:02:48.2]} 23... f5
{[%clk 0:03:51.5]} 24. Bg3 {[%clk 0:02:38.3]} 24... fxe4 {[%clk 0:03:48.7]} 25.
Be5+ {[%clk 0:02:35.4]} 25... Kg8 {[%clk 0:03:47.5]} 26. Qh3 {[%clk 0:02:31.6]}
26... Qh7 {[%clk 0:03:42.3]} 27. Qe6+ {[%clk 0:02:29.2]} 27... Qf7 {[%clk
0:03:41.2]} 28. Qxf7+ {[%clk 0:02:17]} 28... Rxf7 {[%clk 0:03:41.1]} 29. Nxc5
{[%clk 0:02:10.6]} 29... Raf8 {[%clk 0:03:37.2]} 30. h3 {[%clk 0:02:02.8]} 30...
Rf1+ {[%clk 0:03:34.5]} 31. Rxf1 {[%clk 0:02:01.1]} 31... Rxf1+ {[%clk
0:03:34.4]} 32. Kh2 {[%clk 0:02:00.2]} 32... Nxc2 {[%clk 0:03:33.8]} 33. Nxe4
{[%clk 0:01:52.8]} 33... d3 {[%clk 0:03:28.1]} 34. Bc3 {[%clk 0:01:44.3]} 34...
Rf4 {[%clk 0:03:13.8]} 35. Nd2 {[%clk 0:01:40]} 35... Rf2 {[%clk 0:03:12.3]} 36.
b3 {[%clk 0:01:36.2]} 36... Re2 {[%clk 0:03:10.9]} 37. Kg3 {[%clk 0:01:32.5]}
37... Ne1 {[%clk 0:03:07.4]} 38. Nf3 {[%clk 0:01:18.6]} 38... Rxg2+ {[%clk
0:03:04]} 39. Kf4 {[%clk 0:01:14.2]} 39... Nxf3 {[%clk 0:03:02.3]} 40. Kxf3
{[%clk 0:01:13.3]} 40... d2 {[%clk 0:03:01.4]} 0-1

[Event "Live Chess"]
[Site "Chess.com"]
[Date "2024.06.02"]
[Round "-"]
[White "willc-h99"]
[Black "Queensandpawns"]
[Result "0-1"]
[WhiteElo "2546"]
[BlackElo "2244"]
[TimeControl "300"]
[EndTime "8:39:35 PDT"]
[Termination "Queensandpawns won by resignation"]

1. d4 {[%clk 0:04:57.9]} 1... Nc6 {[%clk 0:04:57.9]} 2. c4 {[%clk 0:04:52.6]}
2... e5 {[%clk 0:04:57.3]} 3. dxe5 {[%clk 0:04:44.9]} 3... Nxe5 {[%clk
0:04:57.2]} 4. e4 {[%clk 0:04:39.9]} 4... Nf6 {[%clk 0:04:56]} 5. f4 {[%clk
0:04:30.2]} 5... Ng6 {[%clk 0:04:54.6]} 6. Bd3 {[%clk 0:04:26.1]} 6... Bc5
{[%clk 0:04:52.9]} 7. e5 {[%clk 0:04:09.7]} 7... Ng8 {[%clk 0:04:47]} 8. Nc3
{[%clk 0:03:59.1]} 8... d6 {[%clk 0:04:46]} 9. Ne4 {[%clk 0:03:56.4]} 9... Bb6
{[%clk 0:04:40]} 10. Nf3 {[%clk 0:03:53.1]} 10... dxe5 {[%clk 0:04:38.1]} 11.
fxe5 {[%clk 0:03:47.7]} 11... Bg4 {[%clk 0:04:36.3]} 12. Bf4 {[%clk 0:03:16.6]}
12... Nxf4 {[%clk 0:04:32.7]} 0-1

[Event "Live Chess"]
[Site "Chess.com"]
[Date "2024.06.02"]
[Round "-"]
[White "halfberg"]
[Black "santhoshrlokesh"]
[Result "1-0"]
[WhiteElo "1893"]
[BlackElo "1511"]
[TimeControl "300"]
[EndTime "8:39:48 PDT"]
[Termination "halfberg won by checkmate"]

1. e4 {[%clk 0:04:57]} 1... d5 {[%clk 0:04:59.4]} 2. exd5 {[%clk 0:04:55.7]}
2... e6 {[%clk 0:04:58]} 3. Nf3 {[%clk 0:04:53.8]} 3... exd5 {[%clk 0:04:55.2]}
4. d4 {[%clk 0:04:52.7]} 4... Bg4 {[%clk 0:04:54]} 5. Be2 {[%clk 0:04:51.6]}
5... Bd6 {[%clk 0:04:50.4]} 6. O-O {[%clk 0:04:51.1]} 6... Ne7 {[%clk
0:04:47.2]} 7. h3 {[%clk 0:04:50.6]} 7... Bh5 {[%clk 0:04:45.7]} 8. c4 {[%clk
0:04:49.7]} 8... dxc4 {[%clk 0:04:42.8]} 9. Nc3 {[%clk 0:04:48.9]} 9... O-O
{[%clk 0:04:40.3]} 10. a4 {[%clk 0:04:46]} 10... Nbc6 {[%clk 0:04:38.5]} 11. d5
{[%clk 0:04:37.8]} 11... Nb4 {[%clk 0:04:33.8]} 12. Bxc4 {[%clk 0:04:35.1]}
12... a6 {[%clk 0:04:21.2]} 13. Bg5 {[%clk 0:04:26.4]} 13... f6 {[%clk
0:04:17.6]} 14. Bh4 {[%clk 0:04:24.7]} 14... Kh8 {[%clk 0:04:16]} 15. Bg3 {[%clk
0:04:20.4]} 15... Bxg3 {[%clk 0:04:12.3]} 16. fxg3 {[%clk 0:04:19.6]} 16...
Nbxd5 {[%clk 0:03:56]} 17. Nxd5 {[%clk 0:04:14.1]} 17... Nxd5 {[%clk 0:03:55.1]}
18. Qxd5 {[%clk 0:04:03.9]} 18... c6 {[%clk 0:03:40.4]} 19. Qxh5 {[%clk
0:04:01.8]} 19... Qb6+ {[%clk 0:03:33.9]} 20. Kh2 {[%clk 0:03:59.6]} 20... Rad8
{[%clk 0:03:22.2]} 21. Rad1 {[%clk 0:03:51.2]} 21... Rxd1 {[%clk 0:03:16]} 22.
Rxd1 {[%clk 0:03:50]} 22... Qxb2 {[%clk 0:03:10.6]} 23. Nh4 {[%clk 0:03:19.5]}
23... Re8 {[%clk 0:02:58.7]} 24. Qxe8# {[%clk 0:03:16.7]} 1-0

[Event "Live Chess"]
[Site "Chess.com"]
[Date "2024.06.02"]
[Round "-"]
[White "silunn"]
[Black "E2E4colchester"]
[Result "1-0"]
[WhiteElo "2050"]
[BlackElo "1008"]
[TimeControl "300"]
[EndTime "8:39:54 PDT"]
[Termination "silunn won by resignation"]

1. e4 {[%clk 0:04:58]} 1... c5 {[%clk 0:04:58.7]} 2. Nf3 {[%clk 0:04:57.4]} 2...
g6 {[%clk 0:04:57]} 3. d4 {[%clk 0:04:57.3]} 3... cxd4 {[%clk 0:04:55.6]} 4.
Nxd4 {[%clk 0:04:56.6]} 4... Bg7 {[%clk 0:04:54.8]} 5. c4 {[%clk 0:04:55.1]}
5... e6 {[%clk 0:04:53.3]} 6. Nc3 {[%clk 0:04:51.4]} 6... Ne7 {[%clk 0:04:52.2]}
7. Ndb5 {[%clk 0:04:48.7]} 7... O-O {[%clk 0:04:46.1]} 8. Bf4 {[%clk 0:04:37.7]}
8... Nbc6 {[%clk 0:04:35.5]} 9. Bd6 {[%clk 0:04:22.7]} 9... e5 {[%clk
0:04:32.1]} 10. Nd5 {[%clk 0:04:20.1]} 10... Nxd5 {[%clk 0:04:29.5]} 11. cxd5
{[%clk 0:04:14.4]} 11... Nd4 {[%clk 0:04:22.2]} 12. Nxd4 {[%clk 0:04:04.7]}
12... exd4 {[%clk 0:04:19.3]} 13. Bxf8 {[%clk 0:04:03.8]} 13... Bxf8 {[%clk
0:04:15.6]} 14. Bd3 {[%clk 0:03:58.6]} 14... d6 {[%clk 0:04:10.8]} 15. O-O
{[%clk 0:03:55.6]} 15... Qb6 {[%clk 0:04:06.4]} 16. Qd2 {[%clk 0:03:51.2]} 16...
Bd7 {[%clk 0:03:58.9]} 17. Kh1 {[%clk 0:03:46]} 17... Rc8 {[%clk 0:03:46.2]} 18.
Rac1 {[%clk 0:03:44.2]} 18... Rxc1 {[%clk 0:03:41.1]} 19. Rxc1 {[%clk
0:03:42.4]} 19... Kg7 {[%clk 0:03:39.5]} 20. a3 {[%clk 0:03:39.8]} 20... Be7
{[%clk 0:03:38.3]} 21. f4 {[%clk 0:03:31.5]} 21... h6 {[%clk 0:03:30]} 22. Bb1
{[%clk 0:03:29.3]} 22... Bg4 {[%clk 0:03:16]} 23. Rc4 {[%clk 0:03:22.2]} 23...
Bd7 {[%clk 0:03:09.9]} 24. Qxd4+ {[%clk 0:03:19.8]} 24... Bf6 {[%clk 0:03:08.3]}
25. Qxb6 {[%clk 0:03:18.3]} 25... axb6 {[%clk 0:03:07.4]} 26. Rb4 {[%clk
0:03:18.2]} 26... b5 {[%clk 0:03:05.8]} 27. Bd3 {[%clk 0:03:16.6]} 27... Bd4
{[%clk 0:02:59.7]} 28. Bxb5 {[%clk 0:03:12.6]} 28... Bc5 {[%clk 0:02:57.3]} 29.
Bxd7 {[%clk 0:03:11.6]} 29... Bxb4 {[%clk 0:02:56.1]} 30. axb4 {[%clk
0:03:11.5]} 30... Kf6 {[%clk 0:02:54.6]} 31. g4 {[%clk 0:03:09.6]} 31... b6
{[%clk 0:02:53.6]} 32. Kg2 {[%clk 0:03:08.4]} 32... g5 {[%clk 0:02:48.9]} 33.
Kf3 {[%clk 0:03:06.7]} 33... Ke7 {[%clk 0:02:42.1]} 34. Bc6 {[%clk 0:03:04.5]}
34... Kf6 {[%clk 0:02:38.6]} 35. fxg5+ {[%clk 0:03:01.4]} 35... Kxg5 {[%clk
0:02:32.7]} 36. Kg3 {[%clk 0:02:59.8]} 36... f6 {[%clk 0:02:25.1]} 37. Be8
{[%clk 0:02:55.8]} 37... h5 {[%clk 0:02:13.4]} 38. h4+ {[%clk 0:02:48.7]} 38...
Kh6 {[%clk 0:02:09.8]} 39. Bxh5 {[%clk 0:02:48.6]} 39... Kg7 {[%clk 0:02:06.5]}
40. Be8 {[%clk 0:02:47.6]} 40... Kh6 {[%clk 0:02:04.7]} 41. Bc6 {[%clk
0:02:47.5]} 41... Kg7 {[%clk 0:02:00.5]} 42. Kf4 {[%clk 0:02:46.5]} 42... Kg6
{[%clk 0:01:58.7]} 43. h5+ {[%clk 0:02:45.4]} 43... Kh6 {[%clk 0:01:57.6]} 44.
Kf5 {[%clk 0:02:45.3]} 44... Kg7 {[%clk 0:01:56.4]} 45. g5 {[%clk 0:02:44.8]}
45... fxg5 {[%clk 0:01:55.3]} 46. Kxg5 {[%clk 0:02:44.7]} 46... Kf7 {[%clk
0:01:52.7]} 47. h6 {[%clk 0:02:43.8]} 47... Kg8 {[%clk 0:01:50.7]} 48. Kf5
{[%clk 0:02:42.9]} 48... Kh8 {[%clk 0:01:48.4]} 49. Ke6 {[%clk 0:02:42.2]} 49...
Kh7 {[%clk 0:01:47.7]} 50. Kxd6 {[%clk 0:02:42.1]} 50... Kxh6 {[%clk 0:01:47.1]}
51. e5 {[%clk 0:02:41.5]} 51... Kg7 {[%clk 0:01:46.5]} 52. e6 {[%clk 0:02:41.4]}
52... Kf8 {[%clk 0:01:45.7]} 53. Kd7 {[%clk 0:02:40.9]} 53... Kg7 {[%clk
0:01:43.9]} 54. e7 {[%clk 0:02:40.8]} 1-0